bitfinex-derivatives/quotes_BTCF0:USTF0_20260214
["timestamp","ask_amount","ask_price","bid_price","bid_amount"]
[1771053514026,0.014511,68950.0,68944.0,0.01452]
[1771053514527,0.013721,68950.0,68944.0,0.01452]
[1771053515324,0.014511,68949.0,68944.0,0.01452]
[1771053515724,0.012111,68949.0,68944.0,0.01452]
[1771053516124,0.010491,68949.0,68944.0,0.01452]
[1771053516526,0.009761,68949.0,68944.0,0.01452]
[1771053516921,0.0732,68953.0,68947.0,0.014511]
[1771053517122,0.08446888,68955.0,68947.0,0.014511]
[1771053517123,0.05767888,68955.0,68947.0,0.029031]
[1771053517522,0.02903,68956.0,68948.0,0.014511]
[1771053517726,0.02903,68956.0,68947.0,0.029031]
[1771053517929,0.02656,68956.0,68948.0,0.014511]
[1771053518228,0.02656,68956.0,68949.0,0.014511]
[1771053518429,0.02656,68956.0,68948.0,0.014511]
[1771053518430,0.02656,68956.0,68950.0,0.014511]
[1771053518621,0.01451,68954.0,68947.0,0.01452]
[1771053518822,0.01451,68954.0,68947.0,0.029031]
[1771053519329,0.01451,68955.0,68947.0,0.029031]
[1771053519525,0.04107,68956.0,68947.0,0.029031]
[1771053519926,0.02902,68954.0,68947.0,0.01452]
[1771053520128,0.01451,68953.0,68947.0,0.01452]
[1771053520533,0.01451,68952.0,68947.0,0.01452]
[1771053522829,0.014511,68951.0,68947.0,0.01452]
[1771053523031,0.014511,68950.0,68948.0,0.01452]
[1771053523328,0.01451,68955.0,68945.0,0.014512]
[1771053523521,0.02902,68955.0,68948.0,0.014511]
[1771053523719,0.01452,68956.0,68947.0,0.014511]
[1771053523922,0.01452,68956.0,68948.0,0.01452]
[1771053524121,0.01451,68954.0,68948.0,0.01452]
[1771053524322,0.02902,68954.0,68948.0,0.01452]
[1771053524529,0.01451,68953.0,68948.0,0.01452]
[1771053527431,0.01378,68953.0,68948.0,0.01452]
[1771053527631,0.01052,68953.0,68948.0,0.01452]
[1771053528233,0.00794,68953.0,68948.0,0.01452]
[1771053528829,0.01451,68954.0,68948.0,0.01452]
[1771053529034,0.01378,68954.0,68948.0,0.01452]
[1771053529434,0.00651,68955.0,68948.0,0.01452]
[1771053529733,0.01451,68954.0,68948.0,0.01452]
[1771053529933,0.01343,68954.0,68948.0,0.01452]
[1771053530134,0.01343,68954.0,68948.0,0.029031]
[1771053530531,0.01123,68954.0,68948.0,0.029031]
[1771053530734,0.01452,68957.0,68948.0,0.029031]
[1771053530933,0.01451,68954.0,68948.0,0.029031]
[1771053531331,0.02902,68954.0,68948.0,0.029031]
[1771053531533,0.014511,68951.0,68948.0,0.01452]
[1771053532338,0.012341,68951.0,68948.0,0.01452]
[1771053532542,0.01451,68952.0,68948.0,0.01452]
[1771053532839,0.029021,68952.0,68948.0,0.01452]
[1771053533444,0.028171,68952.0,68948.0,0.01452]
[1771053533635,0.014511,68951.0,68948.0,0.01452]
[1771053534336,0.012351,68951.0,68948.0,0.01452]
[1771053534830,0.011601,68951.0,68948.0,0.01452]
[1771053536437,0.009241,68951.0,68948.0,0.01452]
[1771053536746,0.008331,68951.0,68948.0,0.01452]
[1771053537343,0.021492,68951.0,68948.0,0.01452]
[1771053537548,0.011261,68953.0,68948.0,0.01452]
[1771053538149,0.014511,68951.0,68948.0,0.01452]
[1771053539041,0.01451,68954.0,68948.0,0.01452]
[1771053540549,0.01451,68954.0,68948.0,0.029031]
[1771053543351,0.01451,68955.0,68948.0,0.043542]
[1771053543650,0.01451,68955.0,68949.0,0.014511]
[1771053544248,0.01451,68955.0,68948.0,0.029031]
[1771053544447,0.01451,68953.0,68947.0,0.01452]
[1771053544654,0.10988598,68952.0,68947.0,0.01452]
[1771053544953,0.12439598,68952.0,68942.0,0.14512]
[1771053545347,0.12439598,68952.0,68944.0,0.014512]
[1771053546149,0.01451,68952.0,68944.0,0.014512]
[1771053546746,0.01451,68952.0,68945.0,0.014512]
[1771053546953,0.02903,68953.0,68946.0,0.01452]
[1771053547453,0.02903,68953.0,68946.0,0.029032]
[1771053549653,0.01452,68954.0,68946.0,0.029032]
[1771053550152,0.02903,68954.0,68946.0,0.029032]
[1771053551859,0.04354,68954.0,68946.0,0.029032]
[1771053552356,0.01451,68953.0,68946.0,0.029032]
[1771053554560,0.01451,68953.0,68946.0,0.043544]
[1771053555057,0.01451,68953.0,68946.0,0.029032]
[1771053555258,0.01451,68952.0,68946.0,0.01452]
[1771053556159,0.01451,68953.0,68946.0,0.029032]
[1771053556654,0.014511,68950.0,68942.0,0.159632]
[1771053556859,0.014511,68950.0,68943.0,0.029032]
[1771053557063,0.029031,68950.0,68943.0,0.029032]
[1771053558960,0.01452,68950.0,68943.0,0.01452]
[1771053559259,0.029031,68950.0,68943.0,0.029032]
[1771053559862,0.029031,68950.0,68943.0,0.014512]
[1771053560061,0.01452,68950.0,68943.0,0.029032]
[1771053560256,0.01452,68950.0,68943.0,0.01452]
[1771053561061,0.01452,68950.0,68944.0,0.014512]
[1771053561461,0.01952,68950.0,68944.0,0.014512]
[1771053561961,0.01852,68950.0,68944.0,0.014512]
[1771053563362,0.01452,68950.0,68944.0,0.014512]
[1771053563663,0.01952,68950.0,68944.0,0.014512]
[1771053564764,0.01852,68950.0,68944.0,0.014512]
[1771053565160,0.01852,68950.0,68944.0,0.029024]
[1771053565566,0.01852,68950.0,68943.0,0.01452]
[1771053566561,0.01452,68950.0,68943.0,0.01452]
[1771053566765,0.01852,68950.0,68943.0,0.01452]
[1771053567567,0.033031,68950.0,68943.0,0.01452]
[1771053569366,0.047542,68950.0,68943.0,0.01452]
[1771053569667,0.033031,68950.0,68943.0,0.01452]
[1771053569866,0.047542,68950.0,68943.0,0.01452]
[1771053570069,0.014511,68948.0,68943.0,0.01452]
[1771053570264,0.014511,68949.0,68943.0,0.01452]
[1771053571266,0.003,68948.0,68943.0,0.01452]
[1771053572871,0.002,68949.0,68943.0,0.01452]
[1771053573367,0.029031,68950.0,68943.0,0.01452]
[1771053574058,0.029031,68950.0,68937.0,0.159633]
[1771053574059,0.014513,68942.0,68931.0,0.014515]
[1771053574365,0.014512,68945.0,68929.0,0.10852608]
[1771053574366,0.014512,68944.0,68933.0,0.014514]
[1771053574666,0.014512,68944.0,68934.0,0.01452]
[1771053574868,0.014512,68944.0,68935.0,0.01452]
[1771053575167,0.014512,68944.0,68935.0,0.029034]
[1771053576362,0.014512,68944.0,68935.0,0.030034]
[1771053578270,0.014512,68944.0,68936.0,0.014514]
[1771053579567,0.029032,68945.0,68936.0,0.014514]
[1771053579568,0.014512,68943.0,68936.0,0.016514]
[1771053580873,0.014512,68943.0,68936.0,0.002]
[1771053581067,0.014512,68943.0,68935.0,0.029034]
[1771053582063,0.014512,68943.0,68936.0,0.003]
[1771053582564,0.014512,68943.0,68935.0,0.032034]
[1771053583061,0.014512,68943.0,68935.0,0.029034]
[1771053584066,0.014512,68943.0,68936.0,0.003]
[1771053585373,0.029024,68943.0,68936.0,0.003]
[1771053585766,0.014512,68942.0,68936.0,0.003]
[1771053587673,0.014512,68942.0,68935.0,0.01452]
[1771053587876,0.014512,68942.0,68936.0,0.003]
[1771053589175,0.014512,68942.0,68935.0,0.01452]
[1771053589370,0.014512,68942.0,68935.0,0.01852]
[1771053589768,0.014512,68942.0,68935.0,0.01452]
[1771053589976,0.014512,68942.0,68936.0,0.003]
[1771053590570,0.014512,68942.0,68935.0,0.01452]
[1771053590874,0.014512,68942.0,68935.0,0.01852]
[1771053591075,0.014513,68941.0,68935.0,0.01852]
[1771053592976,0.014513,68941.0,68935.0,0.01452]
[1771053593168,0.014513,68941.0,68936.0,0.003]
[1771053593572,0.014513,68941.0,68935.0,0.01452]
[1771053594479,0.014513,68941.0,68935.0,0.01852]
[1771053594877,0.014513,68941.0,68936.0,0.004]
[1771053596476,0.014513,68941.0,68935.0,0.01852]
[1771053596986,0.014513,68941.0,68935.0,0.01452]
[1771053597677,0.014513,68941.0,68936.0,0.004]
[1771053598078,0.014513,68941.0,68937.0,0.01452]
[1771053600177,0.014513,68940.0,68937.0,0.01452]
[1771053600383,0.014513,68938.0,68936.0,0.01452]
[1771053600676,0.014513,68938.0,68935.0,0.01452]
[1771053600878,0.014513,68938.0,68936.0,0.004]
[1771053601278,0.014513,68938.0,68930.0,0.014515]
[1771053601279,0.10791394,68935.0,68917.0,0.75581495]
[1771053601474,0.014516,68925.0,68917.0,0.54545995]
[1771053601673,0.014515,68929.0,68912.0,0.01452]
[1771053601674,0.014516,68924.0,68916.0,0.014518]
[1771053602377,0.014516,68924.0,68917.0,0.01452]
[1771053604686,0.01452,68925.0,68917.0,0.01452]
[1771053604886,0.018516,68924.0,68917.0,0.01452]
[1771053607790,0.017516,68924.0,68917.0,0.01452]
[1771053609289,0.017516,68924.0,68917.0,0.029038]
[1771053609688,0.017516,68924.0,68917.0,0.01452]
[1771053610383,0.014516,68923.0,68917.0,0.01452]
[1771053611779,0.005,68924.0,68918.0,0.014517]
[1771053611985,0.005,68924.0,68917.0,0.029038]
[1771053612388,0.019516,68924.0,68917.0,0.029038]
[1771053612990,0.001,68923.0,68917.0,0.029038]
[1771053613885,0.015516,68924.0,68917.0,0.029038]
[1771053614489,0.001,68923.0,68917.0,0.029038]
[1771053616598,0.015516,68924.0,68917.0,0.029038]
[1771053616799,0.001,68923.0,68917.0,0.029038]
[1771053619200,0.001,68923.0,68917.0,0.01452]
[1771053619903,0.015516,68923.0,68917.0,0.01452]
[1771053620503,0.015516,68923.0,68917.0,0.11812923]
[1771053620702,0.014516,68924.0,68917.0,0.11812923]
[1771053621002,0.014516,68923.0,68917.0,0.11812923]
[1771053623305,0.029034,68921.0,68917.0,0.01452]
[1771053623600,0.029034,68920.0,68917.0,0.01452]
[1771053623804,0.014517,68919.0,68917.0,0.01452]
[1771053625502,0.014517,68918.0,68917.0,0.01452]
[1771053626805,0.014517,68918.0,68917.0,0.01652]
[1771053627402,0.014517,68919.0,68917.0,0.01652]
[1771053628502,0.014517,68920.0,68917.0,0.01652]
[1771053629698,0.014517,68920.0,68917.0,0.01452]
[1771053630005,0.014517,68919.0,68917.0,0.01452]
[1771053630409,0.014517,68919.0,68917.0,0.01652]
[1771053631510,0.014517,68920.0,68917.0,0.01652]
[1771053631698,0.014517,68920.0,68917.0,0.01452]
[1771053632402,0.014517,68920.0,68917.0,0.01652]
[1771053632805,0.014517,68920.0,68917.0,0.01552]
[1771053636312,0.014517,68920.0,68917.0,0.01452]
[1771053636509,0.014517,68920.0,68917.0,0.01552]
[1771053636701,0.014517,68922.0,68917.0,0.01552]
[1771053636901,0.014517,68921.0,68917.0,0.01552]
[1771053637712,0.014517,68920.0,68917.0,0.01552]
[1771053638013,0.014517,68919.0,68917.0,0.01552]
[1771053639017,0.014517,68919.0,68917.0,0.01652]
[1771053639714,0.014517,68919.0,68917.0,0.01452]
[1771053640309,0.014517,68919.0,68917.0,0.01752]
[1771053641714,0.014517,68918.0,68917.0,0.01752]
[1771053643417,0.014517,68921.0,68917.0,0.01752]
[1771053643612,0.014517,68920.0,68917.0,0.01752]
[1771053643914,0.014517,68919.0,68917.0,0.01752]
[1771053644816,0.014517,68919.0,68917.0,0.01452]
[1771053645017,0.014517,68919.0,68917.0,0.01852]
[1771053645411,0.014517,68919.0,68917.0,0.01452]
[1771053646017,0.014517,68919.0,68917.0,0.01752]
[1771053647221,0.029034,68919.0,68917.0,0.01752]
[1771053647524,0.014517,68918.0,68917.0,0.01752]
[1771053648218,0.014517,68918.0,68916.0,0.01452]
[1771053648620,0.014517,68918.0,68917.0,0.003]
[1771053649021,0.014517,68919.0,68917.0,0.003]
[1771053650217,0.014517,68919.0,68917.0,0.002]
[1771053650718,0.014517,68919.0,68916.0,0.01452]
[1771053650919,0.014517,68919.0,68917.0,0.002]
[1771053653220,0.029034,68919.0,68917.0,0.002]
[1771053653618,0.014517,68919.0,68917.0,0.002]
[1771053653920,0.014517,68918.0,68917.0,0.002]
[1771053654421,0.014517,68918.0,68916.0,0.01452]
[1771053655619,0.015517,68918.0,68916.0,0.01452]
[1771053657320,0.030035,68918.0,68916.0,0.01452]
[1771053657716,0.014518,68917.0,68916.0,0.01452]
[1771053657918,0.014518,68917.0,68916.0,0.00201]
[1771053658220,0.015518,68918.0,68916.0,0.01452]
[1771053659120,0.014518,68917.0,68916.0,0.01452]
[1771053660023,0.014518,68916.0,68910.0,0.31325964]
[1771053660723,0.014518,68916.0,68911.0,0.01452]
[1771053661722,0.022518,68916.0,68911.0,0.01452]
[1771053662323,0.008,68916.0,68911.0,0.01452]
[1771053662523,0.022518,68916.0,68910.0,0.16809964]
[1771053662724,0.022518,68916.0,68911.0,0.01452]
[1771053663626,0.037036,68916.0,68911.0,0.01452]
[1771053663825,0.018518,68916.0,68911.0,0.01452]
[1771053664015,0.033036,68916.0,68911.0,0.01452]
[1771053664325,0.014518,68915.0,68911.0,0.01452]
[1771053664526,0.014518,68915.0,68906.0,0.01452]
[1771053664527,0.014519,68914.0,68906.0,0.01452]
[1771053664719,0.014519,68914.0,68907.0,0.15968]
[1771053665220,0.014519,68913.0,68907.0,0.15968]
[1771053665519,0.014519,68912.0,68907.0,0.15968]
[1771053666622,0.014519,68913.0,68907.0,0.15968]
[1771053667528,0.014519,68913.0,68908.0,0.01452]
[1771053668628,0.014518,68914.0,68908.0,0.01452]
[1771053669729,0.029036,68915.0,68908.0,0.01452]
[1771053670331,0.014518,68914.0,68908.0,0.01452]
[1771053671330,0.014519,68913.0,68908.0,0.01552]
[1771053671531,0.014519,68913.0,68908.0,0.01652]
[1771053673231,0.014519,68910.0,68909.0,0.01452]
[1771053673632,0.014519,68911.0,68909.0,0.01452]
[1771053675135,0.014519,68911.0,68909.0,0.02252]
[1771053675937,0.014519,68910.0,68909.0,0.02252]
[1771053676136,0.029038,68912.0,68909.0,0.01452]
[1771053676334,0.014519,68911.0,68909.0,0.01452]
[1771053677035,0.014519,68911.0,68909.0,0.02152]
[1771053677436,0.014519,68911.0,68909.0,0.01452]
[1771053677736,0.014519,68911.0,68909.0,0.02052]
[1771053679338,0.014519,68910.0,68909.0,0.02052]
[1771053679534,0.014519,68911.0,68909.0,0.02052]
[1771053680532,0.014519,68911.0,68909.0,0.01452]
[1771053680839,0.029038,68911.0,68909.0,0.01452]
[1771053681136,0.014519,68911.0,68909.0,0.01452]
[1771053682625,0.014519,68910.0,68909.0,0.01452]
[1771053683834,0.018519,68910.0,68909.0,0.01452]
[1771053684736,0.014519,68910.0,68909.0,0.01452]
[1771053685038,0.016519,68910.0,68909.0,0.01452]
[1771053685230,0.016519,68910.0,68908.0,0.01452]
[1771053686136,0.031038,68910.0,68908.0,0.01452]
[1771053686337,0.029038,68910.0,68908.0,0.01452]
[1771053686531,0.014519,68909.0,68908.0,0.01452]
[1771053687838,0.017519,68909.0,68908.0,0.0127114]
[1771053688036,0.017519,68909.0,68908.0,0.01452]
[1771053689843,0.01452,68916.0,68908.0,0.01452]
[1771053690439,0.014519,68911.0,68908.0,0.01452]
[1771053690639,0.014519,68912.0,68908.0,0.01452]
[1771053692641,0.014519,68911.0,68908.0,0.01452]
[1771053693147,0.017519,68912.0,68908.0,0.01452]
[1771053693548,0.014518,68914.0,68908.0,0.01452]
[1771053693846,0.029038,68912.0,68908.0,0.01452]
[1771053694049,0.016519,68911.0,68908.0,0.01452]
[1771053694449,0.014519,68911.0,68908.0,0.01452]
[1771053695048,0.014519,68910.0,68908.0,0.01452]
[1771053695648,0.014519,68911.0,68908.0,0.01452]
[1771053696045,0.015519,68912.0,68908.0,0.01452]
[1771053696650,0.014519,68912.0,68908.0,0.01752]
[1771053697149,0.014519,68912.0,68908.0,0.02452]
[1771053697651,0.014519,68911.0,68908.0,0.02652]
[1771053698544,0.014519,68910.0,68908.0,0.02652]
[1771053699144,0.014519,68910.0,68908.0,0.02052]
[1771053699649,0.014519,68911.0,68908.0,0.02352]
[1771053699650,0.014519,68909.0,68908.0,0.02352]
[1771053700952,0.014519,68910.0,68908.0,0.01452]
[1771053701155,0.014519,68910.0,68908.0,0.02352]
[1771053701855,0.014519,68909.0,68908.0,0.02352]
[1771053704756,0.014519,68910.0,68908.0,0.02352]
[1771053705550,0.014519,68909.0,68908.0,0.01452]
[1771053705756,0.014519,68910.0,68908.0,0.02352]
[1771053705956,0.014519,68909.0,68908.0,0.02352]
[1771053706957,0.014519,68909.0,68908.0,0.01152]
[1771053707252,0.014519,68909.0,68908.0,0.02052]
[1771053708056,0.014519,68913.0,68908.0,0.02052]
[1771053708262,0.014519,68911.0,68908.0,0.02052]
[1771053708654,0.014519,68910.0,68908.0,0.02052]
[1771053708855,0.014519,68909.0,68908.0,0.02052]
[1771053709054,0.014519,68909.0,68908.0,0.01152]
[1771053709257,0.014519,68909.0,68908.0,0.01852]
[1771053709658,0.014519,68909.0,68908.0,0.01152]
[1771053710263,0.014519,68909.0,68908.0,0.02052]
[1771053710456,0.014519,68910.0,68908.0,0.02952]
[1771053710658,0.01452,68915.0,68908.0,0.02952]
[1771053710852,0.014519,68909.0,68908.0,0.009]
[1771053711051,0.01452,68906.0,68904.0,0.01452]
[1771053712358,0.01452,68906.0,68904.0,0.02252]
[1771053712863,0.01452,68905.0,68904.0,0.02252]
[1771053713655,0.01452,68907.0,68904.0,0.02252]
[1771053714758,0.01452,68905.0,68904.0,0.008]
[1771053714953,0.02052,68905.0,68904.0,0.01452]
[1771053715360,0.01452,68905.0,68904.0,0.01452]
[1771053715960,0.00013526,68905.0,68904.0,0.01452]
[1771053716162,0.00013526,68905.0,68904.0,0.01552]
[1771053716754,0.01965526,68905.0,68904.0,0.01552]
[1771053717060,0.01965526,68905.0,68904.0,0.01652]
[1771053717061,0.02465526,68905.0,68904.0,0.01652]
[1771053717658,0.01013526,68905.0,68904.0,0.01652]
[1771053718562,0.00013526,68905.0,68904.0,0.01452]
[1771053719962,0.02013526,68905.0,68904.0,0.02052]
[1771053720461,0.03039888,68924.0,68905.0,0.10108068]
[1771053720767,0.014516,68923.0,68918.0,0.10108068]
[1771053720956,0.01452,68928.0,68919.0,0.11566774]
[1771053721158,0.014516,68927.0,68920.0,0.01452]
[1771053721663,0.01452,68928.0,68920.0,0.01452]
[1771053721664,0.014516,68924.0,68920.0,0.01452]
[1771053721860,0.014516,68923.0,68920.0,0.01452]
[1771053722055,0.014516,68927.0,68920.0,0.01452]
[1771053722460,0.027516,68923.0,68920.0,0.01452]
[1771053722764,0.027516,68923.0,68920.0,0.01852]
[1771053723358,0.014517,68922.0,68920.0,0.01852]
[1771053723564,0.014517,68919.0,68916.0,0.10402261]
[1771053723766,0.014517,68919.0,68917.0,0.01452]
[1771053724151,0.014516,68923.0,68917.0,0.01452]
[1771053724665,0.014517,68919.0,68917.0,0.01452]
[1771053725765,0.014517,68919.0,68918.0,0.01452]
[1771053726065,0.023517,68919.0,68918.0,0.01452]
[1771053726268,0.023517,68919.0,68918.0,0.008022]
[1771053726564,0.023517,68919.0,68918.0,0.01452]
[1771053728265,0.023517,68919.0,68917.0,0.002]
[1771053728466,0.023517,68919.0,68918.0,0.01452]
[1771053728860,0.014516,68923.0,68918.0,0.01452]
[1771053728861,0.014517,68921.0,68918.0,0.01452]
[1771053729168,0.014516,68926.0,68918.0,0.01452]
[1771053729358,0.014516,68926.0,68918.0,0.01752]
[1771053729760,0.014516,68924.0,68918.0,0.01452]
[1771053729973,0.014516,68924.0,68918.0,0.01652]
[1771053730268,0.014517,68922.0,68918.0,0.01652]
[1771053730469,0.014516,68925.0,68918.0,0.01752]
[1771053730866,0.014517,68922.0,68918.0,0.01752]
[1771053731065,0.029034,68922.0,68918.0,0.01452]
[1771053731367,0.014517,68922.0,68918.0,0.01452]
[1771053731970,0.014517,68921.0,68918.0,0.01452]
[1771053734074,0.014517,68921.0,68918.0,0.02452]
[1771053734973,0.014517,68919.0,68918.0,0.02452]
[1771053735166,0.014517,68919.0,68906.0,0.01452]
[1771053735167,0.014517,68923.0,68907.0,0.10402261]
[1771053735367,0.014518,68916.0,68908.0,0.174199]
[1771053735566,0.014518,68916.0,68908.0,0.27822161]
[1771053738268,0.020518,68916.0,68909.0,0.10402261]
[1771053738465,0.020518,68916.0,68908.0,0.033519]
[1771053738668,0.020518,68916.0,68909.0,0.15968]
[1771053739875,0.014518,68916.0,68909.0,0.15968]
[1771053740275,0.014518,68915.0,68909.0,0.15968]
[1771053740470,0.014518,68916.0,68909.0,0.15968]
[1771053740875,0.014518,68916.0,68909.0,0.16968]
[1771053740876,0.017518,68916.0,68909.0,0.16968]
[1771053741369,0.017518,68916.0,68909.0,0.15968]
[1771053741575,0.003,68915.0,68909.0,0.16968]
[1771053743076,0.018518,68916.0,68909.0,0.17868]
[1771053743477,0.014518,68916.0,68909.0,0.15968]
[1771053743777,0.004,68915.0,68909.0,0.17868]
[1771053744277,0.014518,68916.0,68909.0,0.15968]
[1771053747478,0.014518,68916.0,68908.0,0.11854161]
[1771053747680,0.014518,68916.0,68909.0,0.01452]
[1771053748684,0.014518,68914.0,68909.0,0.06052]
[1771053751077,0.014518,68914.0,68909.0,0.01452]
[1771053754087,0.014518,68915.0,68909.0,0.01452]
[1771053754283,0.029038,68917.0,68909.0,0.01452]
[1771053754688,0.003,68914.0,68909.0,0.03352]
[1771053755487,0.014518,68915.0,68909.0,0.01452]
[1771053755889,0.017518,68915.0,68909.0,0.03352]
[1771053756586,0.003,68914.0,68909.0,0.05252]
[1771053757287,0.014518,68915.0,68909.0,0.01452]
[1771053758391,0.003,68914.0,68909.0,0.03152]
[1771053759489,0.017518,68915.0,68909.0,0.03152]
[1771053760392,0.014518,68915.0,68909.0,0.01452]
[1771053762398,0.017518,68915.0,68909.0,0.03052]
[1771053763988,0.003,68915.0,68909.0,0.03052]
[1771053764495,0.003,68915.0,68909.0,0.03452]
[1771053764997,0.014518,68916.0,68909.0,0.01452]
[1771053765198,0.003,68915.0,68909.0,0.03452]
[1771053766593,0.014518,68916.0,68909.0,0.03852]
[1771053766796,0.003,68915.0,68909.0,0.03852]
[1771053767298,0.003,68915.0,68910.0,0.10291512]
[1771053767599,0.003,68915.0,68909.0,0.03852]
[1771053767791,0.014518,68916.0,68909.0,0.01452]
[1771053767991,0.014518,68916.0,68909.0,0.11743512]
[1771053768298,0.017518,68916.0,68909.0,0.14143512]
[1771053769299,0.014518,68916.0,68909.0,0.11743512]
[1771053769598,0.003,68915.0,68910.0,0.026]
[1771053769799,0.01452,68917.0,68911.0,0.014519]
[1771053769993,0.01452,68917.0,68911.0,0.11743412]
[1771053771101,0.01752,68917.0,68911.0,0.14243412]
[1771053772700,0.01752,68917.0,68911.0,0.14043412]
[1771053773198,0.01452,68925.0,68917.0,0.10291512]
[1771053773391,0.029036,68925.0,68918.0,0.10291512]
[1771053773596,0.01452,68926.0,68918.0,0.11743212]
[1771053774194,0.029036,68926.0,68918.0,0.11743212]
[1771053774399,0.003,68925.0,68918.0,0.11743212]
[1771053774600,0.07254017,68935.0,68930.0,0.014515]
[1771053774900,0.01452,68935.0,68929.0,0.11743012]
[1771053775405,0.029034,68935.0,68929.0,0.11743012]
[1771053775794,0.029034,68935.0,68929.0,0.10291512]
[1771053776502,0.014514,68934.0,68929.0,0.11891512]
[1771053777104,0.014514,68934.0,68929.0,0.10291512]
[1771053777603,0.014514,68934.0,68929.0,0.11891512]
[1771053777798,0.014514,68934.0,68929.0,0.13491512]
[1771053778105,0.015514,68934.0,68929.0,0.13491512]
[1771053779905,0.014513,68938.0,68930.0,0.10833447]
[1771053780101,0.014514,68935.0,68930.0,0.12284947]
[1771053780908,0.01452,68935.0,68932.0,0.10291512]
[1771053781304,0.029034,68935.0,68932.0,0.10291512]
[1771053781608,0.014514,68934.0,68932.0,0.10291512]
[1771053782206,0.029034,68935.0,68932.0,0.10291512]
[1771053782504,0.032034,68935.0,68932.0,0.10291512]
[1771053782911,0.029034,68935.0,68932.0,0.10291512]
[1771053783208,0.01452,68937.0,68932.0,0.10491512]
[1771053783407,0.014514,68936.0,68932.0,0.10491512]
[1771053783911,0.029028,68936.0,68932.0,0.10391512]
[1771053784112,0.014514,68936.0,68932.0,0.10391512]
[1771053784308,0.014514,68935.0,68932.0,0.10391512]
[1771053785115,0.11722,68940.0,68932.0,0.10391512]
[1771053785116,0.014513,68940.0,68936.0,0.1010041]
[1771053785515,0.01452,68941.0,68936.0,0.1010041]
[1771053785706,0.014513,68939.0,68934.0,0.014514]
[1771053785909,0.014513,68939.0,68933.0,0.1300381]
[1771053785910,0.003,68935.0,68933.0,0.1300381]
[1771053786209,0.014513,68939.0,68933.0,0.1300381]
[1771053786416,0.014513,68939.0,68933.0,0.1155241]
[1771053786809,0.029033,68941.0,68933.0,0.1300381]
[1771053787013,0.029033,68941.0,68934.0,0.1010041]
[1771053787014,0.014513,68941.0,68934.0,0.1010041]
[1771053787208,0.014513,68941.0,68936.0,0.003]
[1771053787612,0.014513,68939.0,68936.0,0.003]
[1771053788616,0.014513,68939.0,68934.0,0.1010041]
[1771053789815,0.014513,68939.0,68936.0,0.006]
[1771053790419,0.029026,68939.0,68934.0,0.1010041]
[1771053790921,0.029026,68939.0,68934.0,0.1040041]
[1771053791120,0.014513,68939.0,68934.0,0.1040041]
[1771053791721,0.021513,68939.0,68934.0,0.1010041]
[1771053792827,0.025513,68939.0,68934.0,0.1010041]
[1771053793125,0.040026,68939.0,68934.0,0.1010041]
[1771053793516,0.025513,68939.0,68934.0,0.1010041]
[1771053794825,0.025513,68939.0,68933.0,0.01452]
[1771053795829,0.014513,68939.0,68933.0,0.01452]
[1771053796021,0.023513,68939.0,68933.0,0.01452]
[1771053796725,0.009,68939.0,68933.0,0.01452]
[1771053798826,0.014512,68943.0,68933.0,0.1155241]
[1771053799026,0.014512,68944.0,68935.0,0.014514]
[1771053799226,0.014512,68944.0,68936.0,0.01452]
[1771053800235,0.014512,68944.0,68936.0,0.029034]
[1771053800535,0.014512,68944.0,68937.0,0.014513]
[1771053801138,0.014512,68944.0,68938.0,0.014513]
[1771053801336,0.01,68943.0,68938.0,0.014513]
[1771053801836,0.014512,68944.0,68938.0,0.014513]
[1771053802136,0.024512,68944.0,68938.0,0.014513]
[1771053803236,0.014512,68944.0,68938.0,0.014513]
[1771053804138,0.014512,68944.0,68938.0,0.029026]
[1771053805139,0.029032,68945.0,68939.0,0.014513]
[1771053805539,0.029032,68945.0,68938.0,0.014513]
[1771053806344,0.014512,68944.0,68938.0,0.014513]
[1771053808541,0.014512,68943.0,68937.0,0.014513]
[1771053809342,0.014512,68944.0,68937.0,0.014513]
[1771053810642,0.00036417,68945.0,68941.0,0.014513]
[1771053810847,0.014511,68947.0,68941.0,0.014512]
[1771053811048,0.01452,68946.0,68941.0,0.014512]
[1771053812245,0.00902,68946.0,68941.0,0.014512]
[1771053812746,0.00759,68946.0,68941.0,0.014512]
[1771053813246,0.00408,68946.0,68941.0,0.014512]
[1771053813447,0.01452,68945.0,68941.0,0.014512]
[1771053813945,0.01325,68945.0,68941.0,0.014512]
[1771053814248,0.014511,68949.0,68941.0,0.014512]
[1771053814448,0.014512,68947.0,68941.0,0.014512]
[1771053814846,0.027024,68947.0,68941.0,0.014512]
[1771053815042,0.012512,68947.0,68941.0,0.014512]
[1771053815249,0.011802,68947.0,68941.0,0.014512]
[1771053815647,0.01452,68946.0,68941.0,0.014512]
[1771053815847,0.00985,68946.0,68941.0,0.014512]
[1771053816150,0.01452,68946.0,68941.0,0.014512]
[1771053816541,0.024874,68947.0,68941.0,0.014512]
[1771053816851,0.01312,68946.0,68941.0,0.014512]
[1771053817051,0.00779,68946.0,68941.0,0.014512]
[1771053817348,0.00702,68946.0,68941.0,0.014512]
[1771053817549,0.021532,68946.0,68941.0,0.014512]
[1771053818253,0.021532,68946.0,68940.0,0.014513]
[1771053819446,0.020832,68946.0,68940.0,0.014513]
[1771053819755,0.025202,68946.0,68940.0,0.014513]
[1771053821052,0.024472,68946.0,68940.0,0.014513]
[1771053821353,0.022922,68946.0,68941.0,0.014513]